bitfinex/quotes_BTCUSD_20250614
["timestamp","ask_amount","ask_price","bid_price","bid_amount"]
[1749914898787,5.53114117,105010.0,105000.0,0.22403967]
[1749914899006,5.53114117,105010.0,105000.0,0.26587967]
[1749914899250,5.53114117,105010.0,105000.0,0.06587968]
[1749914900540,5.62729039,105010.0,105000.0,0.02403968]
[1749914900753,5.62729039,105010.0,105000.0,0.06587968]
[1749914903777,5.64183124,105010.0,105000.0,0.06587968]
[1749914904849,5.64183124,105010.0,105000.0,0.02403968]
[1749914905063,5.64183124,105010.0,105000.0,0.0222]
[1749914905284,5.64183124,105010.0,105000.0,0.04184]
[1749914905496,5.64183124,105010.0,105000.0,0.06714]
[1749914906970,5.64383124,105010.0,105000.0,0.06714]
[1749914907389,5.64583124,105010.0,105000.0,0.06714]
[1749914908802,5.64596861,105010.0,105000.0,0.06714]
[1749914909921,5.54981939,105010.0,105000.0,0.06714]
[1749914910130,5.54981939,105010.0,105000.0,0.09204]
[1749914912629,5.4927915,105010.0,105000.0,0.09204]
[1749914912990,5.54981939,105010.0,105000.0,0.09204]
[1749914916633,5.4927915,105010.0,105000.0,0.09204]
[1749914917925,5.54981939,105010.0,105000.0,0.09204]
[1749914918519,5.4927915,105010.0,105000.0,0.09204]
[1749914918738,5.54981939,105010.0,105000.0,0.09204]
[1749914919903,5.54981842,105010.0,105000.0,0.09204]
[1749914922250,5.54981842,105010.0,105000.0,0.2920399]
[1749914923206,5.54981842,105010.0,105000.0,0.09204]
[1749914932155,5.54981842,105010.0,105000.0,0.28251619]
[1749914932573,5.54981842,105010.0,105000.0,0.09204]
[1749914940299,5.64596764,105010.0,105000.0,0.09204]
[1749914941126,5.54981842,105010.0,105000.0,0.09204]
[1749914943372,4.68857776,105010.0,105000.0,0.31108651]
[1749914943613,4.62209566,105010.0,105000.0,0.31108651]
[1749914943841,4.60305229,105010.0,105000.0,0.31108651]
[1749914944074,4.94305229,105010.0,105000.0,0.31108651]
[1749914944301,4.93353012,105010.0,105000.0,0.31108651]
[1749914945662,4.75025844,105010.0,105000.0,0.31108651]
[1749914945876,4.74825844,105010.0,105000.0,0.31108651]
[1749914946317,4.73673627,105010.0,105000.0,0.32319228]
[1749914946804,4.74625835,105010.0,105000.0,0.32319228]
[1749914947039,4.73673627,105010.0,105000.0,0.32319228]
[1749914947458,4.75772259,105010.0,105000.0,0.32319228]
[1749914948741,4.76724467,105010.0,105000.0,0.32319228]
[1749914948950,4.76724467,105010.0,105000.0,0.31108651]
[1749914949659,4.74440949,105010.0,105000.0,0.31108651]
[1749914950105,4.75393184,105010.0,105000.0,0.31108651]
[1749914950333,4.74440949,105010.0,105000.0,0.31108651]
[1749914950756,4.77674959,105010.0,105000.0,0.31108651]
[1749914950964,4.76722724,105010.0,105000.0,0.31108651]
[1749914951184,4.74440949,105010.0,105000.0,0.31108651]
[1749914951397,4.75393175,105010.0,105000.0,0.31108651]
[1749914951621,4.77675355,105010.0,105000.0,0.31108651]
[1749914952358,4.7862759,105010.0,105000.0,0.31108651]
[1749914952577,4.7634541,105010.0,105000.0,0.31108651]
[1749914952781,4.75393175,105010.0,105000.0,0.31108651]
[1749914952995,4.7444094,105010.0,105000.0,0.39060141]
[1749914953218,4.77675524,105010.0,105000.0,0.39060141]
[1749914953638,4.77675515,105010.0,105000.0,0.39060141]
[1749914953843,4.75393157,105010.0,105000.0,0.31108651]
[1749914954266,4.76723228,105010.0,105000.0,0.31108651]
[1749914954917,4.7577102,105010.0,105000.0,0.31108651]
[1749914955960,4.7577102,105010.0,105000.0,0.56440827]
[1749914955961,0.02098632,105010.0,105000.0,0.56440827]
[1749914956166,0.57853265,105030.0,105020.0,0.21900507]
[1749914956369,5.26390505,105030.0,105020.0,0.30750507]
[1749914956776,5.27342613,105030.0,105020.0,0.31702643]
[1749914956992,5.49301894,105030.0,105020.0,0.29798362]
[1749914957392,5.49301894,105030.0,105020.0,0.30750525]
[1749914957990,5.48349831,105030.0,105020.0,0.30750525]
[1749914960162,5.48349831,105030.0,105020.0,0.3170267]
[1749914960860,4.99439831,105030.0,105020.0,0.3170267]
[1749914961485,4.99439831,105030.0,105020.0,0.30750525]
[1749914962167,4.99439831,105030.0,105020.0,0.31702679]
[1749914963204,4.99439831,105030.0,105020.0,0.30750525]
[1749914964714,4.98487759,105030.0,105020.0,0.30750525]
[1749914965622,4.98487759,105030.0,105020.0,0.31702679]
[1749914966966,4.98487759,105030.0,105020.0,0.32654824]
[1749914967406,4.98487759,105030.0,105020.0,0.30750525]
[1749914968116,4.98487759,105030.0,105020.0,0.29798362]
[1749914968557,4.98487759,105030.0,105020.0,0.30750525]
[1749914969207,4.9753566,105030.0,105020.0,0.0885]
[1749914969918,4.9753566,105030.0,105020.0,0.09802199]
[1749914970793,4.9753566,105030.0,105020.0,0.2884619]
[1749914971969,4.96583552,105030.0,105020.0,0.30750543]
[1749914972200,4.96583552,105030.0,105020.0,0.30750561]
[1749914972803,4.94301417,105030.0,105020.0,0.30750561]
[1749914973026,4.99437397,105030.0,105020.0,0.30750561]
[1749914974571,4.99437397,105030.0,105020.0,0.32654896]
[1749914974975,5.00389487,105030.0,105020.0,0.32654851]
[1749914976057,5.00389487,105030.0,105020.0,0.31702697]
[1749914977103,5.00389487,105030.0,105020.0,0.32654851]
[1749914977526,5.00389487,105030.0,105020.0,0.32654806]
[1749914978349,4.82299372,105030.0,105020.0,0.32654761]
[1749914978779,4.83251471,105030.0,105020.0,0.32654761]
[1749914979189,5.03245757,105030.0,105020.0,0.32654761]
[1749914979636,5.03245757,105030.0,105020.0,0.31702625]
[1749914980479,5.03245757,105030.0,105020.0,0.3075048]
[1749914981429,5.02293694,105030.0,105020.0,0.3075048]
[1749914984051,5.02293694,105030.0,105020.0,0.31702625]
[1749914984251,5.02963546,105030.0,105020.0,0.31702625]
[1749914984690,5.02963546,105030.0,105020.0,0.37729446]
[1749914984691,4.82969215,105030.0,105020.0,0.37729446]
[1749914984910,4.84873341,105030.0,105020.0,0.37729446]
[1749914985060,4.81065071,105030.0,105020.0,0.32654761]
[1749914985274,4.77541897,105030.0,105020.0,0.32654761]
[1749914985482,0.06151797,105030.0,105020.0,0.32654761]
[1749914985681,0.40151797,105030.0,105020.0,0.32654761]
[1749914986471,0.40151797,105030.0,105020.0,0.50360659]
[1749914987090,0.41103824,105030.0,105020.0,0.50360659]
[1749914987550,0.38821166,105030.0,105020.0,0.50360659]
[1749914988694,0.37869139,105030.0,105020.0,0.50360659]
[1749914988902,0.38821166,105030.0,105020.0,0.50360659]
[1749914989514,0.37869139,105030.0,105020.0,0.50360659]
[1749914990096,0.37869139,105030.0,105020.0,0.48326761]
[1749914993289,0.38821175,105030.0,105020.0,0.48326761]
[1749914998046,0.3977322,105030.0,105020.0,0.48326761]
[1749914998649,0.38821175,105030.0,105020.0,0.48326761]
[1749914999077,0.39773229,105030.0,105020.0,0.48326761]
[1749914999279,0.38821175,105030.0,105020.0,0.48326761]
[1749915000311,0.39773229,105030.0,105020.0,0.48326761]
[1749915000449,0.40725283,105030.0,105020.0,0.48298761]
[1749915000656,0.60719605,105030.0,105020.0,0.25678362]
[1749915000859,0.63002263,105030.0,105020.0,0.46366525]
[1749915001068,0.63002263,105030.0,105020.0,0.47318679]
[1749915001273,0.63002263,105030.0,105020.0,0.44978679]
[1749915001879,0.63002263,105030.0,105020.0,0.45930824]
[1749915002080,0.63002263,105030.0,105020.0,0.29338679]
[1749915002283,0.63002263,105030.0,105020.0,0.24290525]
[1749915002502,0.62050218,105030.0,105020.0,0.28386525]
[1749915003575,0.62050218,105030.0,105020.0,0.21433991]
[1749915003705,4.97536183,105030.0,105020.0,0.04096]
[1749915003902,4.97536183,105030.0,105020.0,0.2409219]
[1749915004135,5.06198997,105030.0,105010.0,0.54154916]
[1749915004368,4.39294408,105020.0,105010.0,0.69802916]
[1749915004519,0.01904308,105020.0,105010.0,0.73898916]
[1749915005577,0.01904281,105020.0,105010.0,0.73898916]
[1749915005987,0.00952136,105020.0,105010.0,0.73898916]
[1749915006189,0.01904281,105020.0,105010.0,0.73998916]
[1749915006626,0.01904281,105020.0,105010.0,0.74198916]
[1749915006825,0.01904281,105020.0,105010.0,0.58550916]
[1749915007028,0.00952136,105020.0,105010.0,0.74210916]
[1749915009193,0.01904281,105020.0,105010.0,0.74210916]
[1749915010094,0.00952136,105020.0,105010.0,0.74210916]
[1749915010513,0.0190429,105020.0,105010.0,0.74210916]
[1749915010942,0.00952136,105020.0,105010.0,0.74210916]
[1749915011357,0.00952117,105020.0,105010.0,0.74210916]
[1749915011574,0.01904262,105020.0,105010.0,0.74210916]
[1749915011773,0.01904244,105020.0,105010.0,0.74210916]
[1749915012400,0.03808534,105020.0,105010.0,0.74210916]
[1749915012617,0.0285638,105020.0,105010.0,0.74210916]
[1749915013236,0.01904244,105020.0,105010.0,0.74210916]
[1749915013442,0.02856389,105020.0,105010.0,0.74210916]
[1749915014472,0.0285638,105020.0,105010.0,0.74210916]
[1749915015091,0.03808534,105020.0,105010.0,0.74210916]
[1749915015314,4.79088732,105020.0,105010.0,0.003]
[1749915015542,0.3495239,104990.0,104980.0,0.26683908]
[1749915015758,0.37809659,104990.0,104980.0,0.29832183]
[1749915015970,0.37809659,104990.0,104980.0,0.30784681]
[1749915016178,0.38762121,104990.0,104980.0,0.3078469]
[1749915016395,0.38762121,104990.0,104980.0,0.31737188]
[1749915016396,0.37809659,104990.0,104980.0,0.31737188]
[1749915016602,0.38762121,104990.0,104980.0,0.31737188]
[1749915017017,0.38762202,104990.0,104980.0,0.27641188]
[1749915017227,0.38762202,104990.0,104980.0,0.31937188]
[1749915017660,0.56859236,104990.0,104980.0,0.30032183]
[1749915017897,0.54954366,104990.0,104980.0,0.29079657]
[1749915018115,0.54954366,104990.0,104980.0,0.30032201]
[1749915018329,0.54954366,104990.0,104980.0,0.30132201]
[1749915018556,0.53049433,104990.0,104980.0,0.06870773]
[1749915018801,5.00049238,104990.0,104980.0,0.06870773]
[1749915018986,5.02326079,104990.0,104980.0,0.06870773]
[1749915019616,5.00049238,104990.0,104980.0,0.06870773]
[1749915020668,4.90439533,104990.0,104980.0,0.06870773]
[1749915020885,4.90439533,104990.0,104980.0,0.2592202]
[1749915021091,4.90439533,104990.0,104980.0,0.26874573]
[1749915021583,4.90439533,104990.0,104980.0,0.06870773]
[1749915022003,4.90439533,104990.0,104980.0,0.07823335]
[1749915022210,4.90439533,104990.0,104980.0,0.06870773]
[1749915022615,4.93241964,104990.0,104980.0,0.06870773]
[1749915024096,4.93241964,104990.0,104980.0,0.07823335]
[1749915024311,4.93241964,104990.0,104980.0,0.06870773]
[1749915027911,4.93241964,104990.0,104980.0,0.09140773]
[1749915029630,4.74192531,104990.0,104980.0,0.30097081]
[1749915029747,4.78002244,104990.0,104980.0,0.31049588]
[1749915029953,4.78002244,104990.0,104980.0,0.30097081]
[1749915030149,4.78002244,104990.0,104980.0,0.31049588]
[1749915030791,4.78954715,104990.0,104980.0,0.31049588]
[1749915031174,4.78954715,104990.0,104980.0,0.32002086]
[1749915033854,4.78002325,104990.0,104980.0,0.31049588]
[1749915034307,4.97051758,104990.0,104980.0,0.31049588]
[1749915034457,4.97051758,104990.0,104980.0,0.30097099]
[1749915035330,4.96099341,104990.0,104980.0,0.30097099]
[1749915038072,4.96099341,104990.0,104980.0,0.31049625]
[1749915039321,4.95146897,104990.0,104980.0,0.31049625]
[1749915040652,4.96471638,104990.0,104980.0,0.29144564]
[1749915041755,4.96471638,104990.0,104980.0,0.30097099]
[1749915041929,4.96471638,104990.0,104980.0,0.31049625]
[1749915044231,4.96471638,104990.0,104980.0,0.32002142]
[1749915044458,4.97424082,104990.0,104980.0,0.32002142]
[1749915044601,5.00275498,104990.0,104980.0,0.32002142]
[1749915045231,5.00275498,104990.0,104980.0,0.32954649]
[1749915045602,5.00275498,104990.0,104980.0,0.30097117]
[1749915045801,5.00275498,104990.0,104980.0,0.31049634]
[1749915046005,5.00275498,104990.0,104980.0,0.30097117]
[1749915046254,5.00275498,104990.0,104980.0,0.31049624]
[1749915046641,5.00275498,104990.0,104980.0,0.30097117]
[1749915046857,5.00275498,104990.0,104980.0,0.3200216]
[1749915047247,5.00275498,104990.0,104980.0,0.29128582]
[1749915047453,5.00275498,104990.0,104980.0,0.2876367]
[1749915047650,5.00275498,104990.0,104980.0,0.29716196]
[1749915048138,5.00275498,104990.0,104980.0,0.30668713]
[1749915048327,5.00275498,104990.0,104980.0,0.32978658]
[1749915051656,4.97424082,104990.0,104980.0,0.32978658]
[1749915051875,4.97424082,104990.0,104980.0,0.31073634]
[1749915052078,4.78374649,104990.0,104980.0,0.32026141]
[1749915052289,4.8027951,104990.0,104980.0,0.32978639]
[1749915052701,4.81231981,104990.0,104980.0,0.32978639]
[1749915053994,4.79327048,104990.0,104980.0,0.32978639]
[1749915054172,4.8027951,104990.0,104980.0,0.32978639]
[1749915055476,4.81231981,104990.0,104980.0,0.32978639]
[1749915058886,4.78374595,104990.0,104980.0,0.32978639]
[1749915059089,4.78374541,104990.0,104980.0,0.32978639]
[1749915059308,4.80279429,104990.0,104980.0,0.32978639]
[1749915059526,4.81231891,104990.0,104980.0,0.32978639]
[1749915060388,4.81231972,104990.0,104980.0,0.32026141]
[1749915061237,4.80279429,104990.0,104980.0,0.38085473]
[1749915061449,0.05079634,104990.0,104980.0,0.53709473]
[1749915061666,0.39079634,104990.0,104980.0,0.53709473]
[1749915061870,0.36802431,104990.0,104980.0,0.53709473]
[1749915062725,0.36802431,104990.0,104980.0,0.48602639]
[1749915063059,0.34,104990.0,104980.0,0.48602639]
[1749915066113,0.02277203,105000.0,104990.0,0.26246738]
[1749915066297,4.76474882,105010.0,105000.0,0.21904651]
[1749915066494,4.76474882,105010.0,105000.0,0.26244651]
[1749915066495,4.77427108,105010.0,105000.0,0.26244651]
[1749915066843,4.78379352,105010.0,105000.0,0.26244651]
[1749915067226,4.79331615,105010.0,105000.0,0.26244651]
[1749915067444,4.78379352,105010.0,105000.0,0.26244651]
[1749915067656,4.79631615,105010.0,105000.0,0.26244651]
[1749915067833,4.78679352,105010.0,105000.0,0.26244651]
[1749915069081,4.42071773,105010.0,105000.0,0.3096454]
[1749915069483,4.42071773,105010.0,105000.0,0.3504454]
[1749915069686,4.43024036,105010.0,105000.0,0.3504454]
[1749915070176,4.42071773,105010.0,105000.0,0.3504454]
[1749915070302,4.43024026,105010.0,105000.0,0.34092223]
[1749915070504,4.60917633,105010.0,105000.0,0.32187508]
[1749915070732,4.60917633,105010.0,105000.0,0.3313987]
[1749915070932,4.60617633,105010.0,105000.0,0.3313987]
[1749915071137,4.60717633,105010.0,105000.0,0.3313987]
[1749915072016,4.60817633,105010.0,105000.0,0.3313987]
[1749915072231,4.60817633,105010.0,105000.0,0.29372334]
[1749915072651,4.60821226,105010.0,105000.0,0.29372334]
[1749915074173,4.94821226,105010.0,105000.0,0.0434]
[1749915074401,0.20952298,105000.0,104990.0,0.24121895]
[1749915074611,0.20952298,105000.0,104990.0,0.29130348]
[1749915074612,0.21904669,105000.0,104990.0,0.29130348]
[1749915074843,0.20952343,105000.0,104990.0,0.30082792]
[1749915075056,0.20952343,105000.0,104990.0,0.31035227]
[1749915075274,0.54952343,105000.0,104990.0,0.31035227]
[1749915075501,0.54952343,105000.0,104990.0,0.0412]
[1749915075741,4.94623117,105000.0,104990.0,0.06236]
[1749915076395,4.94623117,105000.0,104990.0,0.26237904]
[1749915076613,4.94623117,105000.0,104990.0,0.27190357]
[1749915076832,4.94623117,105000.0,104990.0,0.27290357]
[1749915081538,4.94623117,105000.0,104990.0,0.28242801]
[1749915081876,4.94623117,105000.0,104990.0,0.29195236]
[1749915082939,4.94623117,105000.0,104990.0,0.35881611]
[1749915083143,4.94623117,105000.0,104990.0,0.37921611]
[1749915083347,4.94623117,105000.0,104990.0,0.31235236]
[1749915083553,4.75575453,105000.0,104990.0,0.3218759]
[1749915083766,4.77480204,105000.0,104990.0,0.3218759]
[1749915083973,4.76527815,105000.0,104990.0,0.3218759]
[1749915084595,4.75575453,105000.0,104990.0,0.3218759]
[1749915084804,4.76527815,105000.0,104990.0,0.3218759]
[1749915085214,4.77480186,105000.0,104990.0,0.3218759]
[1749915085629,4.97480185,105000.0,104990.0,0.31235191]
[1749915085801,4.78432566,105000.0,104990.0,0.32187563]
[1749915086652,4.77480186,105000.0,104990.0,0.32187563]
[1749915087061,4.96527805,105000.0,104990.0,0.31235155]
[1749915087272,4.63695479,105000.0,104990.0,0.26162819]
[1749915087481,4.61575479,105000.0,104990.0,0.27115254]
[1749915087681,4.61575479,105000.0,104990.0,0.29265254]
[1749915088085,4.61575479,105000.0,104990.0,0.3225768]
[1749915088524,4.61575479,105000.0,104990.0,0.3021768]
[1749915088936,4.4348024,105000.0,104990.0,0.30217626]
[1749915089141,4.41575399,105000.0,104990.0,0.32257572]
[1749915089355,4.42527743,105000.0,104990.0,0.32257572]
[1749915090386,4.42527734,105000.0,104990.0,0.32257572]
[1749915090605,4.39670774,105000.0,104990.0,0.32257572]
[1749915090813,4.40623073,105000.0,104990.0,0.32257572]
[1749915091019,4.39670774,105000.0,104990.0,0.32257572]
[1749915092365,4.40623073,105000.0,104990.0,0.32257572]
[1749915092862,4.39670774,105000.0,104990.0,0.32257572]
[1749915092994,4.40623082,105000.0,104990.0,0.32257572]
[1749915096266,4.39670774,105000.0,104990.0,0.32257572]
[1749915096896,4.40623073,105000.0,104990.0,0.32257572]
[1749915097332,0.03232973,105000.0,104990.0,0.32257572]
[1749915097476,0.06089969,105000.0,104990.0,0.28201572]
[1749915097888,0.03809268,105000.0,104990.0,0.47869572]
[1749915098130,0.03809259,105000.0,104990.0,0.47869572]
[1749915098581,0.02856924,105000.0,104990.0,0.47869572]
[1749915098800,0.03809259,105000.0,104990.0,0.47869572]
[1749915098974,0.04761603,105000.0,104990.0,0.47869572]
[1749915099608,0.02856924,105000.0,104990.0,0.47869572]
[1749915099818,4.60247095,105000.0,104990.0,0.45012321]
[1749915100074,4.60247095,105000.0,104990.0,0.30352747]
[1749915100273,4.60247095,105000.0,104990.0,0.0235]
[1749915100429,4.58342452,105000.0,104990.0,0.24257895]
[1749915100608,4.58342452,105000.0,104990.0,0.25210348]
[1749915101361,4.58342452,105000.0,104990.0,0.21154348]
[1749915101567,4.58342452,105000.0,104990.0,0.25210348]
[1749915101790,4.58342452,105000.0,104990.0,0.21154348]
[1749915101947,4.92467719,105000.0,104990.0,0.002]
[1749915102150,4.753401,105000.0,104990.0,0.04256]
[1749915102369,4.94387719,105000.0,104990.0,0.04256]
[1749915103110,4.94387719,105000.0,104990.0,0.04056]
[1749915103426,4.94487719,105000.0,104990.0,0.04056]
[1749915103674,4.94587719,105000.0,104990.0,0.04056]
[1749915105237,4.92667719,105000.0,104990.0,0.04056]
[1749915108589,4.9495244,105000.0,104990.0,0.04056]
[1749915109649,4.9292244,105000.0,104990.0,0.04056]
[1749915112359,4.95778341,105000.0,104990.0,0.04056]
[1749915112786,4.95778341,105000.0,104990.0,0.06136]
[1749915113408,4.95778341,105000.0,104990.0,0.07088471]
[1749915114142,4.95778341,105000.0,104990.0,0.26137904]
[1749915115058,4.95778341,105000.0,104990.0,0.27090366]
[1749915115832,4.77683084,105000.0,104990.0,0.2804281]
[1749915116098,4.98635337,105000.0,104990.0,0.09068471]
[1749915116301,4.97683074,105000.0,104990.0,0.26137904]
[1749915116452,4.97683074,105000.0,104990.0,0.07088471]
[1749915116655,4.97683074,105000.0,104990.0,0.26137904]
[1749915116859,4.96730721,105000.0,104990.0,0.26137904]
[1749915117659,4.96730721,105000.0,104990.0,0.07088471]
[1749915118065,4.95778341,105000.0,104990.0,0.07088471]
[1749915118257,4.95778341,105000.0,104990.0,0.06136]
[1749915119518,4.95778341,105000.0,104990.0,0.0616]
[1749915120885,4.97778341,105000.0,104990.0,0.0616]
[1749915130428,5.07393263,105000.0,104990.0,0.0616]
[1749915131250,4.97778341,105000.0,104990.0,0.0616]
[1749915131467,5.01586209,105000.0,104990.0,0.0616]
[1749915137147,4.92344412,104990.0,104980.0,0.04054773]
[1749915137374,5.07109237,104990.0,104980.0,0.08150773]
[1749915137806,5.07109237,104990.0,104980.0,0.2720202]
[1749915138168,5.07109237,104990.0,104980.0,0.08150773]
[1749915138962,5.07109237,104990.0,104980.0,0.08250773]
[1749915139163,5.07109237,104990.0,104980.0,0.28254573]
[1749915139478,5.07109237,104990.0,104980.0,0.28354573]
[1749915139703,5.07109237,104990.0,104980.0,0.29307117]
[1749915140026,5.07109237,104990.0,104980.0,0.04254773]
[1749915140231,5.07109237,104990.0,104980.0,0.09303335]
[1749915141047,5.07109237,104990.0,104980.0,0.05207335]
[1749915141249,5.07109237,104990.0,104980.0,0.09303335]
[1749915141958,5.01968615,104990.0,104980.0,0.28354582]
[1749915143002,5.01968615,104990.0,104980.0,0.29307135]
[1749915143571,5.01968615,104990.0,104980.0,0.30259679]
[1749915144366,5.01968615,104990.0,104980.0,0.29307135]
[1749915144973,5.01016171,104990.0,104980.0,0.09303335]
[1749915145187,5.01016171,104990.0,104980.0,0.17073983]
[1749915145518,5.01016171,104990.0,104980.0,0.09303335]
[1749915147559,5.01016171,104990.0,104980.0,0.28354582]
[1749915147769,5.01016171,104990.0,104980.0,0.29307135]
[1749915147906,5.01016171,104990.0,104980.0,0.30259679]
[1749915151018,4.81966711,104990.0,104980.0,0.30259679]
[1749915151254,4.75199831,104990.0,104980.0,0.32164703]
[1749915151446,4.7748645,104990.0,104980.0,0.32164703]
[1749915152286,4.96535946,104990.0,104980.0,0.31212205]
[1749915152505,4.96535946,104990.0,104980.0,0.32164712]
[1749915153758,4.96535946,104990.0,104980.0,0.31212205]
[1749915153968,4.9558352,104990.0,104980.0,0.30259679]
[1749915154172,4.9558352,104990.0,104980.0,0.31212214]
[1749915154811,4.9558352,104990.0,104980.0,0.32164731]
[1749915155013,4.9558352,104990.0,104980.0,0.31212214]
[1749915155423,4.98441794,104990.0,104980.0,0.32164721]
[1749915155629,4.98441794,104990.0,104980.0,0.25211135]
[1749915155833,4.97489359,104990.0,104980.0,0.29307135]
[1749915156005,4.97489359,104990.0,104980.0,0.3025967]
[1749915163361,4.97489359,104990.0,104980.0,0.09303335]
[1749915163566,5.06161073,104990.0,104980.0,0.27327135]
[1749915164614,5.05208602,104990.0,104980.0,0.07323335]
[1749915165825,5.05208602,104990.0,104980.0,0.06370773]
[1749915166039,5.14823524,104990.0,104980.0,0.06370773]
[1749915166510,5.14823524,104990.0,104980.0,0.02274773]
[1749915166717,5.14823524,104990.0,104980.0,0.06346773]
[1749915166937,0.19054878,104960.0,104940.0,0.19051823]
[1749915167153,4.57397712,104960.0,104950.0,0.25034352]
[1749915167363,0.22294231,104960.0,104950.0,0.04965546]
[1749915167573,0.22294231,104960.0,104950.0,0.09024799]
[1749915167574,4.59684331,104960.0,104950.0,0.09024799]
[1749915167787,4.93684331,104960.0,104950.0,0.09977624]
[1749915168048,4.93684331,104960.0,104950.0,0.29987124]
[1749915168255,4.93684331,104960.0,104950.0,0.25915124]
[1749915168465,4.93684331,104960.0,104950.0,0.30287119]
[1749915169546,4.93684331,104960.0,104950.0,0.30287128]
[1749915169717,4.9647923,104960.0,104950.0,0.30487128]
[1749915169897,4.9647923,104960.0,104950.0,0.30487103]
[1749915170333,4.97431937,104960.0,104950.0,0.32392683]
[1749915170926,5.07046859,104960.0,104950.0,0.32392683]
[1749915171135,4.97431937,104960.0,104950.0,0.32392683]
[1749915171331,4.97431937,104960.0,104950.0,0.33345472]
[1749915171613,4.81165691,104960.0,104950.0,0.33345389]
[1749915171828,4.82118434,104960.0,104950.0,0.32392618]
[1749915172436,4.82118434,104960.0,104950.0,0.33345398]
[1749915172637,5.01173312,104960.0,104950.0,0.32392618]
[1749915172845,5.01173312,104960.0,104950.0,0.33345368]
[1749915173525,4.78879072,104960.0,104950.0,0.33345323]
[1749915173948,4.98886693,104960.0,104950.0,0.33345323]
[1749915175004,4.98886693,104960.0,104950.0,0.32452638]
[1749915175872,4.76973631,104960.0,104950.0,0.32452638]
[1749915176078,0.41488864,104960.0,104950.0,0.32452638]
[1749915176551,0.43394251,104960.0,104950.0,0.32452638]
[1749915178244,0.44346958,104960.0,104950.0,0.32452638]
[1749915179867,0.62449138,104960.0,104950.0,0.0456]
[1749915180059,4.78879063,104960.0,104950.0,0.28641509]
[1749915180289,4.97933941,104960.0,104950.0,0.29594316]
[1749915180739,4.97933941,104960.0,104950.0,0.25522316]
[1749915180950,4.97933941,104960.0,104950.0,0.28641509]
[1749915181385,4.96981234,104960.0,104950.0,0.28641509]
[1749915181589,4.96981234,104960.0,104950.0,0.24569509]
[1749915181790,4.78879054,104960.0,104950.0,0.30547114]
[1749915182044,4.97933932,104960.0,104950.0,0.30547114]
[1749915182272,4.97933932,104960.0,104950.0,0.31499903]
[1749915183599,4.97933932,104960.0,104950.0,0.28641509]
[1749915183819,4.97933932,104960.0,104950.0,0.30547096]
[1749915184038,4.97933932,104960.0,104950.0,0.29594307]
[1749915184960,4.97933932,104960.0,104950.0,0.27688693]
[1749915185185,4.97933932,104960.0,104950.0,0.29594334]
[1749915185409,4.97933932,104960.0,104950.0,0.30547114]
[1749915185626,4.97933932,104960.0,104950.0,0.06592]
[1749915185872,5.07548854,104960.0,104950.0,0.06592]
[1749915186574,5.07548854,104960.0,104950.0,0.26601527]
[1749915186807,5.07548854,104960.0,104950.0,0.28507168]
[1749915187315,5.09827267,104960.0,104950.0,0.24581527]
[1749915187805,5.09827267,104960.0,104950.0,0.25534334]
[1749915188044,5.09827267,104960.0,104950.0,0.27614334]
[1749915188327,5.09827267,104960.0,104950.0,0.2850481]
[1749915188566,5.00212345,104960.0,104950.0,0.29457626]
[1749915188806,5.00212345,104960.0,104950.0,0.30410433]
[1749915189290,5.00212345,104960.0,104950.0,0.23479985]
[1749915189569,5.00212345,104960.0,104950.0,0.29457626]
[1749915189800,5.00212345,104960.0,104950.0,0.30410433]
[1749915190058,5.09827267,104960.0,104950.0,0.30410433]
[1749915190571,5.09827267,104960.0,104950.0,0.31363231]
[1749915191070,5.01165079,104960.0,104950.0,0.31363141]
[1749915191319,4.79252044,104960.0,104950.0,0.33363141]
[1749915191572,4.81157386,104960.0,104950.0,0.32472638]
[1749915192114,4.79831662,104960.0,104950.0,0.32472638]
[1749915192352,4.8211204,104960.0,104950.0,0.32472638]
[1749915193059,4.83064747,104960.0,104950.0,0.32472638]
[1749915193267,4.83064756,104960.0,104950.0,0.32472638]
[1749915193495,4.83064747,104960.0,104950.0,0.32472638]
[1749915194416,4.8211204,104960.0,104950.0,0.32472638]
[1749915194645,4.81159351,104960.0,104950.0,0.32472638]
[1749915194866,4.82112049,104960.0,104950.0,0.32472638]
[1749915195545,4.4811204,104960.0,104950.0,0.32472638]
[1749915196030,4.49064747,104960.0,104950.0,0.32472638]
[1749915196257,4.49064738,104960.0,104950.0,0.32472638]
[1749915197367,4.4811204,104960.0,104950.0,0.32472638]
[1749915198065,4.48112049,104960.0,104950.0,0.40375457]
[1749915198291,4.49064756,104960.0,104950.0,0.32472638]
[1749915198801,4.48112049,104960.0,104950.0,0.32472638]
[1749915200144,4.49064765,104960.0,104950.0,0.32472638]
[1749915200344,4.48112049,104960.0,104950.0,0.32472638]
[1749915200844,4.46206671,104960.0,104950.0,0.32472638]
[1749915201048,0.09769251,104960.0,104950.0,0.32472638]
[1749915201257,0.05075277,104960.0,104950.0,0.40375457]
[1749915201674,0.02794899,104960.0,104950.0,0.40375457]
[1749915202132,4.77480897,104970.0,104960.0,0.26122999]
[1749915202383,4.77480897,104970.0,104960.0,0.30186999]
[1749915202608,4.76528263,104970.0,104960.0,0.30186999]
[1749915202835,4.77480888,104970.0,104960.0,0.30186999]
[1749915203070,4.78433522,104970.0,104960.0,0.37703003]
[1749915203561,4.78433595,104970.0,104960.0,0.30286999]
[1749915203787,4.96534059,104970.0,104960.0,0.29334319]
[1749915204014,4.95581443,104970.0,104960.0,0.28381612]
[1749915204259,4.94628818,104970.0,104960.0,0.27234337]
[1749915204487,4.94628818,104970.0,104960.0,0.24123053]
[1749915204724,4.94628818,104970.0,104960.0,0.28187053]
[1749915205157,4.97029129,104970.0,104960.0,0.28187053]
[1749915205383,4.99886882,104970.0,104960.0,0.28187053]
[1749915207830,4.98934248,104970.0,104960.0,0.28187053]
[1749915208033,5.0760578,104970.0,104960.0,0.0221]
[1749915208254,5.0760578,104970.0,104960.0,0.07226743]
[1749915210627,5.0760578,104970.0,104960.0,0.26281621]
[1749915210863,5.09059865,104970.0,104960.0,0.0221]
[1749915211067,5.09059865,104970.0,104960.0,0.04164]
[1749915212604,5.38674787,104970.0,104960.0,0.04164]
[1749915212851,5.65897451,104970.0,104960.0,0.04164]
[1749915214853,5.65897451,104970.0,104960.0,0.03210593]
[1749915215276,4.39295696,104950.0,104940.0,0.52621305]
[1749915215482,4.41576065,104950.0,104940.0,0.56685305]
[1749915215686,4.41576056,104950.0,104940.0,0.56685305]
[1749915215906,4.41576029,104950.0,104940.0,0.57578412]
[1749915216542,4.42528827,104950.0,104940.0,0.57878412]
[1749915217193,4.42528818,104950.0,104940.0,0.57878412]
[1749915217626,4.75381019,104950.0,104940.0,0.32760839]
[1749915217872,0.25006293,104930.0,104870.0,0.62]
[1749915218091,1.10470374,104880.0,104870.0,0.02]
[1749915218320,5.47820474,104880.0,104870.0,0.05110593]
[1749915218541,5.79092606,104880.0,104870.0,0.01773667]
[1749915218763,5.98288427,104880.0,104870.0,0.0082026]
[1749915219011,5.98288427,104880.0,104860.0,0.06326]
[1749915219012,4.91414874,104870.0,104860.0,0.06326]
[1749915219228,4.39666694,104870.0,104860.0,0.36323896]